fUSD/lending_fUSD_20250123
["ID","MTS","AMOUNT","RATE_DAILY","PERIOD"]
[350082040,1737606638572,-387.33882346,0.000187,2]
[350082041,1737606638667,-208.54354746,0.000187,2]
[350082042,1737606638679,-822.98183645,0.000187,2]
[350082043,1737606638689,-238.58421968,0.00018728,2]
[350082044,1737606638699,-240.26,0.0001874,2]
[350082045,1737606638708,-700.17,0.00018751,2]
[350082046,1737606638718,-1786.0,0.000188,2]
[350082047,1737606638727,-1235.2029,0.000188,2]
[350082048,1737606638736,-2485.8515,0.000188,2]
[350082049,1737606638746,-4780.7054,0.000188,2]
[350082050,1737606638755,-5552.57293911,0.000188,2]
[350082051,1737606638766,-2564.54896089,0.000188,2]
[350082052,1737606638777,-29907.47928584,0.000188,2]
[350082053,1737606638790,-6276.82231416,0.000188,2]
[350082054,1737606638800,-1318.76363151,0.000188,2]
[350082055,1737606638810,-238.58421968,0.00018866,2]
[350082056,1737606638819,-484.45,0.0001889,2]
[350082057,1737606638828,-5000.0,0.000189,2]
[350082058,1737606638837,-220.0,0.000189,2]
[350082059,1737606638847,-1735.0752525,0.000189,2]
[350082060,1737606638859,-174.79715052,0.000189,2]
[350082061,1737606638868,-211.73108163,0.000189,2]
[350082062,1737606638884,-1399.11444293,0.000189,2]
[350082063,1737606638910,-379.61296465,0.000189,2]
[350082064,1737606638922,-3000.967956,0.000189,2]
[350082065,1737606639387,-981.1717515,0.000189,2]
[350082068,1737606639625,-407.48708,0.000189,2]
[350082069,1737606639677,-51020.39999992,0.000189,2]
[350082070,1737606639842,-470.01017221,0.000189,2]
[350082071,1737606639900,-7011.55872744,0.000189,2]
[350082072,1737606639912,-1609.99999999,0.000189,2]
[350082073,1737606640011,-7776.4474,0.000189,2]
[350082074,1737606640034,-1264.21042373,0.000189,2]
[350082075,1737606640043,-163.2331682,0.000189,2]
[350082076,1737606640053,-3078.85303436,0.000189,2]
[350082077,1737606640062,-22382.63592021,0.000189,2]
[350082084,1737606643078,-21961.30827979,0.000189,2]
[350082085,1737606643090,-383.23317894,0.000189,2]
[350082086,1737606643100,-1318.76363144,0.00018922,2]
[350082087,1737606643113,-189.01707657,0.00018973,2]
[350082088,1737606643127,-151.09,0.0001899,2]
[350082089,1737606643137,-151.09,0.0001899,2]
[350082090,1737606643146,-151.09,0.0001899,2]
[350082091,1737606643156,-484.45,0.0001899,2]
[350082092,1737606643166,-151.09,0.0001899,2]
[350082093,1737606643176,-151.09,0.0001899,2]
[350082095,1737606643185,-151.09,0.0001899,2]
[350082097,1737606643195,-151.09,0.0001899,2]
[350082098,1737606643205,-151.09,0.0001899,2]
[350082099,1737606643214,-151.09,0.0001899,2]
[350082100,1737606643224,-151.09,0.0001899,2]
[350082101,1737606643233,-151.09,0.0001899,2]
[350082102,1737606643242,-151.09,0.0001899,2]
[350082103,1737606643252,-151.09,0.0001899,2]
[350082104,1737606643261,-151.09,0.0001899,2]
[350082105,1737606643270,-232.67,0.00018999,2]
[350082106,1737606643279,-500.0,0.00018999,2]
[350082107,1737606643289,-2329.0,0.00018999,2]
[350082108,1737606643298,-1041.08101976,0.00019,2]
[350082109,1737606643307,-5907.60351983,0.00019,2]
[350082110,1737606643319,-349.9999805,0.00019,2]
[350082111,1737606643396,-1149.80522888,0.00019,2]
[350082112,1737606643429,-3497.865448,0.00019,2]
[350082113,1737606645557,-642.44,0.000178,2]
[350082114,1737606645568,-127.59,0.000178,2]
[350082115,1737606645578,-438.64,0.000178,2]
[350082116,1737606645589,-681.63219975,0.00019,2]
[350082117,1737606645602,-3141.99999,0.00019,2]
[350082118,1737606645652,-5395.36727572,0.00019,2]
[350082119,1737606645665,-9444.6,0.00019,2]
[350082120,1737606645785,-5100.0,0.00019,2]
[350082121,1737606645889,-1019999.99999971,0.00019,2]
[350082131,1737607418449,156.58,0.00010137,2]
[350082133,1737607609121,-156.62915291,0.00012329,2]
[350082134,1737607644431,-42.72084709,0.00012329,2]
[350082135,1737607644453,-315.40947827,0.000149,2]
[350082136,1737607654098,-285.19449504,0.000149,2]
[350082137,1737607761128,-464.77659508,0.00014822,2]
[350082138,1737607761148,-464.77659507,0.00014843,2]
[350082139,1737607761169,-2679.35051353,0.00014987,2]
[350082140,1737607764084,-841.37261653,0.00014987,2]
[350082141,1737607764106,-15.20918265,0.00015,2]
[350082142,1737607765102,-534.79081735,0.00015,2]
[350082143,1737607765124,-2519.92056429,0.00015116,2]
[350082144,1737607765147,-2519.92056429,0.00015138,2]
[350082145,1737607765168,-1496.81,0.00015237,2]
[350082146,1737607765188,-153.47010744,0.00015238,2]
[350082147,1737607765208,-150.0,0.00015644,2]
[350082148,1737607765228,-808.05412084,0.00016,6]
[350082149,1737607765248,-155.11,0.00016578,2]
[350082150,1737607765268,-604.0,0.00016795,2]
[350082151,1737607765289,-156.58,0.00016813,2]
[350082152,1737607765310,-250.0,0.00016856,2]
[350082153,1737607765330,-1500.0,0.0001694,2]
[350082154,1737607765351,-600.0,0.00017,2]
[350082155,1737607765376,-378.77766085,0.00017081,2]
[350082156,1737607766111,-40.10233915,0.00017081,2]
[350082157,1737607766137,-1000.0,0.00017267,2]
[350082158,1737607766158,-1496.81,0.00017501,2]
[350082159,1737607766181,-341.47,0.00017554,2]
[350082160,1737607766205,-773.39,0.00017741,2]
[350082161,1737607801771,162.45288809,0.00017688,2]
[350082171,1737607831790,-1913.71767153,0.00017688,2]
[350082172,1737607831800,-2076.17055958,0.00017689,2]
[350082173,1737607831813,-2076.17055958,0.0001769,2]
[350082174,1737607831823,-2076.17055958,0.00017691,2]
[350082175,1737607831832,-1139.93595974,0.00017692,2]
[350082176,1737607831858,-936.23459984,0.00017692,2]
[350082177,1737607831868,-105.52587093,0.00017693,2]
[350082178,1737607831905,-1970.64468865,0.00017693,2]
[350082179,1737607831915,-2076.17055958,0.00017695,2]
[350082180,1737607831924,-157.29,0.00017777,2]
[350082181,1737607831935,-250.0,0.00017789,2]
[350082182,1737607831944,-157.29,0.000178,2]
[350082183,1737607831954,-171.2,0.00017805,2]
[350082184,1737607831963,-157.29,0.00017822,2]
[350082185,1737607831972,-157.29,0.00017844,2]
[350082186,1737607831984,-1322.68,0.00017845,2]
[350082187,1737607831993,-157.29,0.00017866,2]
[350082188,1737607832003,-250.0,0.0001797,2]
[350082189,1737607832013,-150.0,0.00017999,2]
[350082190,1737607832022,-160.922,0.0001805,2]
[350082191,1737607832031,-420.1,0.00018082,2]
[350082192,1737607832040,-211.76,0.00018103,30]
[350082193,1737607832050,-500.0,0.00018164,2]
[350082194,1737607832059,-4504.46392453,0.00018177,2]
[350082195,1737607832071,-19395.53607547,0.00018177,2]
[350082196,1737607832080,-435.69392454,0.00018217,2]
[350082197,1737607832095,-2.94607546,0.00018217,2]
[350082198,1737607832104,-155.11,0.00018235,2]
[350082199,1737607832113,-4134.0,0.00018251,2]
[350082200,1737607832122,-731.4896079,0.0001831,2]
[350082201,1737607832133,-320.0,0.0001831,2]
[350082202,1737607832148,-287.1533921,0.0001831,2]
[350082203,1737607832157,-150.0,0.00018332,2]
[350082204,1737607832167,-150.0,0.00018384,2]
[350082205,1737607832176,-150.0,0.00018411,2]
[350082206,1737607832186,-150.0,0.00018464,2]
[350082207,1737607832195,-150.0,0.00018501,2]
[350082208,1737607832205,-150.0,0.00018507,2]
[350082209,1737607832217,-166.66,0.0001857,2]
[350082210,1737607832226,-420.1,0.00018751,2]
[350082211,1737607832236,-1563.8813,0.000188,2]
[350082212,1737607832245,-5379.1336,0.000188,2]
[350082213,1737607832254,-267.37895577,0.000188,2]
[350082214,1737607832265,-311.100002,0.000188,2]
[350082215,1737607832287,-301.35129775,0.000188,2]
[350082216,1737607832298,-786.44211909,0.000188,2]
[350082217,1737607832310,-358.94512539,0.000188,2]
[350082218,1737607832319,-4483.7086,0.000188,2]
[350082219,1737607832328,-6664.72837383,0.000188,2]
[350082220,1737607832338,-3000.0,0.0001881,2]
[350082221,1737607832349,-500.0,0.00018847,2]
[350082222,1737607832360,-500.0,0.00018848,2]
[350082223,1737607832370,-11178.8281,0.000189,2]
[350082224,1737607832382,-1000.0,0.000189,2]
[350082225,1737607832393,-49063.07553579,0.000189,2]
[350082226,1737607832411,-168.42036421,0.000189,2]
[350082227,1737607832421,-7529.759937,0.000189,2]
[350082228,1737607835622,-3200.00000002,0.000189,2]
[350082229,1737607835633,-3321.16508446,0.000189,2]
[350082230,1737607835645,-597.72655424,0.000189,2]
[350082231,1737607835686,-1018.3,0.000189,2]
[350082246,1737607837698,-664.35403119,0.00017692,2]
[350082247,1737607837756,-14753.39856875,0.00017692,2]
[350082248,1737607837766,-2076.17055958,0.00017696,2]
[350082249,1737607837775,-2542.47302428,0.000189,2]
[350082250,1737607837784,-4804.5058,0.000189,2]
[350082251,1737607837794,-174.79715048,0.000189,2]
[350082252,1737607837803,-5000.0,0.000189,2]
[350082253,1737607837812,-1131.45347791,0.000189,2]
[350082254,1737607837821,-2500.0,0.000189,2]
[350082255,1737607837830,-201.87895521,0.000189,2]
[350082256,1737607837840,-6664.72837382,0.00018922,2]
[350082257,1737607837849,-500.0,0.00018973,2]
[350082258,1737607837859,-303.54566319,0.00018973,2]
[350082259,1737607837869,-151.1,0.0001899,2]
[350082260,1737607837879,-151.1,0.0001899,2]
[350082261,1737607837888,-2420.0,0.00019,2]
[350082262,1737607837898,-7384.99842684,0.00019,2]
[350082263,1737607837921,-829.7390491,0.00019,2]
[350082264,1737607838016,-31.68827711,0.00019,2]
[350082265,1737607838028,-150361.48501526,0.00019,2]
[350082266,1737607838039,-4052.43992541,0.00019,2]
[350082267,1737607838050,-642.79616751,0.00019,2]
[350082268,1737607838062,-1622.86138848,0.00019,2]
[350082269,1737607838073,-1622.94058006,0.00019,2]
[350082270,1737607838087,-727.31762433,0.00019,2]
[350082277,1737607838320,-285.08139774,0.00019,2]
[350082278,1737607840091,-1000.0,0.000188,2]
[350082279,1737607840101,-18.905831,0.00019,2]
[350082280,1737607840147,-811.40119023,0.00019,2]
[350082281,1737607840261,-1236.92124,0.00019,2]
[350082282,1737607840273,-1920.87587247,0.00019,2]
[350082283,1737607840317,-98616.0,0.00019,2]
[350082289,1737607843735,-17.40323918,0.00017697,2]
[350082290,1737607843747,-2058.7673204,0.00017697,2]
[350082291,1737607843756,-4337.00021929,0.00019,2]
[350082292,1737607843863,-3170.60889574,0.00019,2]
[350082293,1737607844044,-377057.2196438,0.00019,2]
[350082294,1737607844059,-10160.15,0.00019,2]
[350082301,1737607845832,-1528.19997,0.00019,2]
[350082302,1737607845891,-4477.51460224,0.00019,2]
[350082303,1737607845903,-622.82785797,0.00019,2]
[350082304,1737607845954,-797.16221998,0.00019,2]
[350082305,1737607846181,-2714.42655484,0.00019,2]
[350082306,1737607846235,-2695.93025125,0.00019,2]
[350082307,1737607846291,-320.32,0.00019,2]
[350082308,1737607846304,-10162.152,0.00019,2]
[350082328,1737607858379,245.0,0.000151,5]
[350082329,1737608093658,151.012313,0.00022,120]
[350082330,1737608471885,403.89,0.00010137,2]
[350082332,1737608839146,-195.35466405,0.00012329,2]
[350082333,1737608945083,-3.99533595,0.00012329,2]
[350082334,1737608945104,-2744.782605,0.00014336,2]
[350082335,1737608945126,-241.89536483,0.00014408,2]
[350082336,1737608945148,-300.0,0.00014453,2]
[350082337,1737608945169,-22500.28346878,0.00014454,2]
[350082338,1737608945190,-1435.87,0.00015289,2]
[350082339,1737608945212,-241.89536482,0.00016083,2]
[350082340,1737608945232,-250.0,0.00016461,2]
[350082341,1737608945252,-484.72,0.00016476,2]
[350082342,1737608945276,-305.99,0.00016527,2]
[350082343,1737608945295,-1715.4,0.00016531,2]
[350082344,1737608945491,-1000.0,0.0001661,2]
[350082345,1737608945512,-150.0,0.00016712,2]
[350082346,1737608945535,-26.72662179,0.00016813,2]
[350082347,1737608954134,-420.0,0.00015827,2]
[350082348,1737608954158,-377.16337821,0.00016813,2]
[350082349,1737608954180,-1458.0,0.00017,5]
[350082350,1737608954200,-1500.0,0.00017001,2]
[350082351,1737608954219,-250.0,0.00017038,2]
[350082352,1737608954239,-192.88,0.00017052,2]
[350082353,1737608954259,-9976.1,0.00017053,2]
[350082354,1737608954280,-188.83,0.00017071,2]
[350082355,1737608954300,-587.54,0.00017105,2]
[350082356,1737608954321,-171.69,0.00017105,2]
[350082357,1737608954342,-230.36,0.00017146,2]
[350082358,1737608954362,-301.1,0.00017146,2]
[350082359,1737608954381,-200.0,0.00017216,2]
[350082360,1737608954401,-2513.42,0.00017257,2]
[350082361,1737608954423,-213.22,0.00017272,30]
[350082362,1737608954443,-550.0,0.00017272,2]
[350082363,1737608954464,-587.0,0.00017331,2]
[350082364,1737608954484,-438.64,0.00017341,2]
[350082365,1737608954504,-185.97,0.00017387,2]
[350082366,1737608954527,-703.22,0.00017475,2]
[350082367,1737608954548,-5733.0,0.00017532,2]
[350082368,1737608954570,-1435.87,0.00017553,2]
[350082369,1737608954589,-53.69411001,0.00017596,2]
[350082373,1737609032088,-241.89536482,0.00017757,2]
[350082374,1737609032099,-250.0,0.00017801,2]
[350082375,1737609032108,-318.3421457,0.0001781,2]
[350082376,1737609032119,-575.84640767,0.0001781,2]
[350082377,1737609032144,-904.53144663,0.0001781,2]
[350082378,1737609032154,-1495.46855337,0.000179,2]
[350082379,1737609032203,-316.53144663,0.000179,2]
[350082380,1737609032212,-160.903,0.0001805,2]
[350082381,1737609032221,-283.42,0.00018082,2]
[350082382,1737609032231,-200.0,0.00018082,2]
[350082383,1737609032241,-438.64,0.00018141,2]
[350082384,1737609032250,-500.0,0.00018164,2]
[350082385,1737609032259,-500.0,0.00018164,2]
[350082386,1737609032269,-414.0229705,0.00018214,2]
[350082387,1737609032367,-1724.5425375,0.00018214,2]
[350082388,1737609032426,-6400.40306169,0.00018214,2]
[350082389,1737609032591,-1020.2192,0.00018214,2]
[350082392,1737609037905,-7015.94967,0.00018214,2]
[350082393,1737609038073,-7324.86256031,0.00018214,2]
[350082394,1737609038082,-1298.08,0.00018311,2]
[350082395,1737609038092,-500.0,0.00018581,2]
[350082396,1737609038102,-636.18304402,0.00018581,2]
[350082397,1737609038112,-383.74,0.00018628,2]
[350082398,1737609038121,-447.3,0.00018628,2]
[350082399,1737609038131,-600.49,0.00018628,2]
[350082400,1737609038141,-150.0,0.0001863,2]
[350082401,1737609038150,-1000.0,0.00018669,2]
[350082402,1737609038159,-1000.0,0.00018686,2]
[350082403,1737609038169,-200.0,0.000187,6]
[350082404,1737609038178,-1000.0,0.00018742,2]
[350082405,1737609038187,-150.0,0.00018749,2]
[350082406,1737609038196,-283.42,0.00018751,2]
[350082407,1737609038205,-192.88,0.00018757,2]
[350082408,1737609038215,-1000.0,0.00018799,2]
[350082409,1737609038224,-4991.7621,0.000188,2]
[350082410,1737609038233,-500.0,0.000188,6]
[350082411,1737609038242,-500.0,0.00018848,2]
[350082412,1737609038251,-150.0,0.00018863,2]
[350082413,1737609038261,-150.0,0.00018866,2]
[350082414,1737609038271,-1000.0,0.00018876,2]
[350082415,1737609038281,-150.0,0.00018885,2]
[350082416,1737609038293,-150.0,0.00018885,2]
[350082417,1737609038302,-150.0,0.00018887,2]
[350082418,1737609038311,-1000.0,0.000189,2]
[350082419,1737609038320,-1327.60309327,0.000189,2]
[350082420,1737609038331,-290.88264583,0.000189,2]
[350082421,1737609038343,-368.41573681,0.000189,2]
[350082422,1737609040436,-509.6,0.000189,2]
[350082433,1737609043148,-1963.05812409,0.000189,2]
[350082434,1737609043158,-1890.1558163,0.000189,2]
[350082435,1737609043167,-5000.0,0.000189,2]
[350082436,1737609043176,-5858.16176844,0.000189,2]
[350082437,1737609043185,-800.0,0.000189,6]
[350082438,1737609043194,-363.3528796,0.000189,2]
[350082439,1737609043203,-1776.6244,0.000189,2]
[350082440,1737609043213,-150.0,0.00018905,2]
[350082441,1737609043222,-307.37757885,0.00018991,2]
[350082442,1737609043233,-1556.90025091,0.00019,2]
[350082443,1737609043242,-342583.60834039,0.00019,2]
[350082444,1737609043252,-3393.51,0.00019,2]
[350082445,1737609043262,-650.0,0.00019,2]
[350082446,1737609043271,-3000.0,0.00019,2]
[350082447,1737609043280,-233.6562339,0.00019,2]
[350082448,1737609043291,-363.35287937,0.00019003,2]
[350082449,1737609043302,-340.1706485,0.0001901,7]
[350082450,1737609043313,-174.79715048,0.00019078,2]
[350082451,1737609043322,-5858.16176844,0.00019101,2]
[350082452,1737609043331,-1890.15581624,0.00019102,2]
[350082453,1737609043341,-363.35287937,0.00019107,2]
[350082454,1737609043351,-151.1,0.00019167,2]
[350082455,1737609043362,-151.1,0.00019167,2]
[350082456,1737609043371,-151.1,0.00019167,2]
[350082457,1737609043381,-151.1,0.00019167,2]
[350082458,1737609043391,-151.1,0.00019168,2]
[350082459,1737609043400,-715794.23898733,0.00019177,2]
[350082460,1737609043422,-3063.34872,0.00019177,2]
[350082462,1737609046075,-1758.10173421,0.00019177,2]
[350082463,1737609046136,-2340.28344851,0.00019177,2]
[350082464,1737609046259,-412.5732438,0.00019177,2]
[350082465,1737609046329,-1019.9,0.00019177,2]
[350082466,1737609046702,-144.16460369,0.00019177,2]
[350082468,1737609345085,-199.35,0.00012329,2]
[350082469,1737609345107,-550.0,0.00015,2]
[350082470,1737609345128,-250.0,0.00016103,2]
[350082471,1737609345149,-600.0,0.00017,2]
[350082472,1737609345171,-500.0,0.00018164,2]
[350082473,1737609345192,-289.13739247,0.00018349,2]
[350082474,1737609345214,-170.05,0.00018387,2]
[350082475,1737609345237,-792.1,0.0001843,2]
[350082476,1737609345258,-300.0,0.00018448,2]
[350082477,1737609345281,-23900.0,0.00018449,2]
[350082478,1737609345303,-2589.68,0.00018449,2]
[350082479,1737609345328,-150.0,0.0001869,2]
[350082480,1737609345352,-150.0,0.00018804,2]
[350082484,1737609365006,446.20149939,0.000188,2]
[350082485,1737609424912,-150.0,0.00018889,2]
[350082486,1737609424934,-1563.8813,0.000189,2]
[350082487,1737609424959,-1000.0,0.000189,2]
[350082488,1737609424983,-5000.0,0.000189,2]
[350082489,1737609425005,-500.0,0.00018936,2]
[350082490,1737609425027,-3211.21541089,0.00018936,2]
[350082491,1737609425049,-546.05634,0.0001899,2]
[350082492,1737609425071,-650.0,0.00019,2]
[350082493,1737609425092,-170.05,0.00019067,2]
[350082494,1737609425115,-1512.12465301,0.00019077,2]
[350082495,1737609425138,-5482.23507117,0.00019078,2]
[350082496,1737609425159,-5056.0269,0.00019078,2]
[350082497,1737609425181,-150.0,0.00019177,2]
[350082498,1737609425202,-200.0,0.00019177,2]
[350082499,1737609425225,-163.031492,0.00019178,2]
[350082500,1737609425248,-169.48725,0.00019178,2]
[350082501,1737609425270,-500.0,0.00019178,2]
[350082502,1737609425292,-159.529244,0.00019178,2]
[350082503,1737609425315,-372.951312,0.00019178,2]
[350082504,1737609425338,-160.233146,0.00019178,2]
[350082505,1737609425359,-158.490083,0.00019178,2]
[350082506,1737609425387,-191.165389,0.00019178,2]
[350082507,1737609425408,-337.57958627,0.00019178,2]
[350082508,1737609425432,-350.074926,0.00019178,2]
[350082509,1737609425454,-166.994306,0.00019178,2]
[350082510,1737609425475,-330.14440531,0.00019178,2]
[350082511,1737609425496,-500.0,0.00019178,2]
[350082512,1737609425517,-500.0,0.00019178,2]
[350082513,1737609425538,-500.0,0.00019178,2]
[350082514,1737609425560,-500.0,0.00019178,2]
[350082515,1737609425580,-500.0,0.00019178,2]
[350082516,1737609425602,-500.0,0.00019178,2]
[350082517,1737609425622,-500.0,0.00019178,2]
[350082518,1737609425643,-500.0,0.00019178,2]
[350082519,1737609425664,-500.0,0.00019178,2]
[350082520,1737609425684,-628.26239678,0.00019178,2]
[350082521,1737609425705,-500.0,0.00019178,2]
[350082522,1737609425726,-500.0,0.00019178,2]
[350082523,1737609425747,-499.65325638,0.00019178,2]
[350082524,1737609425768,-506.03994309,0.00019178,2]
[350082525,1737609425788,-500.0,0.00019178,2]
[350082526,1737609425810,-500.0,0.00019178,2]
[350082527,1737609425830,-500.0,0.00019178,2]
[350082528,1737609425851,-500.0,0.00019178,2]
[350082529,1737609425872,-503.54265547,0.00019178,2]
[350082530,1737609425892,-500.0,0.00019178,2]
[350082531,1737609425914,-500.0,0.00019178,2]
[350082532,1737609425937,-506.7355815,0.00019178,2]
[350082533,1737609425963,-500.0,0.00019178,2]
[350082534,1737609425984,-605.99104778,0.00019178,2]
[350082535,1737609426006,-500.0,0.00019178,2]
[350082536,1737609426026,-500.0,0.00019178,2]
[350082537,1737609426051,-505.54441883,0.00019178,2]
[350082538,1737609426074,-504.74570541,0.00019178,2]
[350082539,1737609426095,-500.0,0.00019178,2]
[350082540,1737609426118,-200.0,0.00019178,2]
[350082541,1737609426140,-500.0,0.00019178,2]
[350082542,1737609426162,-500.0,0.00019178,2]
[350082543,1737609426184,-500.0,0.00019178,2]
[350082544,1737609426206,-500.0,0.00019178,2]
[350082545,1737609426228,-500.0,0.00019178,2]
[350082546,1737609426249,-500.0,0.00019178,2]
[350082547,1737609426270,-500.0,0.00019178,2]
[350082548,1737609426292,-500.0,0.00019178,2]
[350082549,1737609426313,-500.0,0.00019178,2]
[350082550,1737609426334,-504.19404873,0.00019178,2]
[350082551,1737609426355,-500.0,0.00019178,2]
[350082552,1737609426376,-500.0,0.00019178,2]
[350082553,1737609426397,-500.0,0.00019178,2]
[350082554,1737609426418,-500.0,0.00019178,2]
[350082555,1737609426440,-500.0,0.00019178,2]
[350082556,1737609426461,-500.0,0.00019178,2]
[350082557,1737609426482,-500.0,0.00019178,2]
[350082558,1737609426502,-502.75675945,0.00019178,2]
[350082559,1737609426522,-502.82932909,0.00019178,2]
[350082560,1737609426543,-500.0,0.00019178,2]
[350082561,1737609426564,-500.0,0.00019178,2]
[350082562,1737609426585,-500.0,0.00019178,2]
[350082563,1737609426605,-500.0,0.00019178,2]
[350082564,1737609426626,-507.04989248,0.00019178,2]
[350082565,1737609426647,-500.0,0.00019178,2]
[350082566,1737609426668,-504.39698983,0.00019178,2]
[350082567,1737609426689,-505.82935615,0.00019178,2]
[350082568,1737609426710,-500.0,0.00019178,2]
[350082569,1737609426731,-500.0,0.00019178,2]
[350082570,1737609426752,-506.04860918,0.00019178,2]
[350082571,1737609426773,-500.0,0.00019178,2]
[350082572,1737609426795,-500.0,0.00019178,2]
[350082573,1737609426817,-500.0,0.00019178,2]
[350082574,1737609426839,-500.0,0.00019178,2]
[350082575,1737609426862,-500.0,0.00019178,2]
[350082576,1737609426885,-151.0,0.00019178,2]
[350082577,1737609426906,-504.17932932,0.00019178,2]
[350082578,1737609426927,-500.0,0.00019178,2]
[350082579,1737609426949,-500.0,0.00019178,2]
[350082580,1737609426973,-500.0,0.00019178,2]
[350082581,1737609426995,-500.0,0.00019178,2]
[350082582,1737609427019,-500.0,0.00019178,2]
[350082583,1737609427043,-500.0,0.00019178,2]
[350082584,1737609427065,-500.0,0.00019178,2]
[350082585,1737609427087,-200.0,0.00019178,2]
[350082586,1737609427108,-500.0,0.00019178,2]
[350082587,1737609427130,-500.0,0.00019178,2]
[350082588,1737609427151,-500.0,0.00019178,2]
[350082589,1737609427172,-500.0,0.00019178,2]
[350082590,1737609427194,-500.0,0.00019178,2]
[350082591,1737609427214,-505.42140907,0.00019178,2]
[350082592,1737609427236,-500.0,0.00019178,2]
[350082593,1737609427258,-500.0,0.00019178,2]
[350082594,1737609427279,-500.0,0.00019178,2]
[350082595,1737609427472,-500.0,0.00019178,2]
[350082596,1737609427497,-500.0,0.00019178,2]
[350082597,1737609427518,-506.74921757,0.00019178,2]
[350082598,1737609427541,-500.0,0.00019178,2]
[350082599,1737609427564,-500.0,0.00019178,2]
[350082600,1737609427586,-500.0,0.00019178,2]
[350082601,1737609427608,-500.0,0.00019178,2]
[350082602,1737609427630,-500.0,0.00019178,2]
[350082603,1737609427651,-500.0,0.00019178,2]
[350082604,1737609427672,-500.0,0.00019178,2]
[350082605,1737609427692,-504.8212508,0.00019178,2]
[350082606,1737609427713,-500.0,0.00019178,2]
[350082607,1737609427733,-505.26156062,0.00019178,2]
[350082608,1737609427753,-500.0,0.00019178,2]
[350082609,1737609427774,-500.0,0.00019178,2]
[350082610,1737609427795,-500.0,0.00019178,2]
[350082611,1737609427818,-388.01584838,0.00019178,2]
[350082612,1737609427838,-500.0,0.00019178,2]
[350082613,1737609427859,-500.0,0.00019178,2]
[350082614,1737609427879,-504.97359244,0.00019178,2]
[350082615,1737609427900,-500.0,0.00019178,2]
[350082616,1737609427921,-500.0,0.00019178,2]
[350082617,1737609427941,-500.0,0.00019178,2]
[350082618,1737609427965,-151.0,0.00019178,2]
[350082619,1737609427986,-500.0,0.00019178,2]
[350082620,1737609428007,-502.86209674,0.00019178,2]
[350082621,1737609428027,-500.0,0.00019178,2]
[350082622,1737609428054,-500.0,0.00019178,2]
[350082623,1737609428076,-500.0,0.00019178,2]
[350082624,1737609428098,-505.8110256,0.00019178,2]
[350082625,1737609428119,-500.0,0.00019178,2]
[350082626,1737609428141,-500.0,0.00019178,2]
[350082627,1737609428162,-503.15301281,0.00019178,2]
[350082628,1737609428182,-500.0,0.00019178,2]
[350082629,1737609428204,-500.0,0.00019178,2]
[350082630,1737609428225,-500.0,0.00019178,2]
[350082631,1737609428246,-500.0,0.00019178,2]
[350082632,1737609428267,-505.89174385,0.00019178,2]
[350082633,1737609428288,-500.0,0.00019178,2]
[350082634,1737609428312,-504.2659657,0.00019178,2]
[350082635,1737609428332,-554.34841397,0.00019178,2]
[350082636,1737609428352,-502.74928889,0.00019178,2]
[350082637,1737609428373,-500.0,0.00019178,2]
[350082638,1737609428395,-500.0,0.00019178,2]
[350082639,1737609428416,-151.0,0.00019178,2]